bitfinex/quotes_BTCUSD_20240902
["timestamp","ask_amount","ask_price","bid_price","bid_amount"]
[1725310514281,0.506371,59245.0,59244.0,0.0334642]
[1725310514716,0.506371,59245.0,59226.0,0.50740786]
[1725310514717,0.1409,59240.0,59239.0,0.0008943]
[1725310515010,0.1,59253.0,59239.0,0.0008943]
[1725310515011,0.1342,59251.0,59239.0,0.0008943]
[1725310515228,0.5,59283.0,59239.0,0.0008943]
[1725310515229,0.1074,59277.0,59270.0,0.01]
[1725310515439,0.1074,59277.0,59276.0,0.168702]
[1725310515668,0.1074,59288.0,59273.0,0.01]
[1725310515886,0.1074,59288.0,59281.0,0.01]
[1725310516109,0.1074,59288.0,59274.0,0.03640236]
[1725310516324,0.1074,59288.0,59274.0,0.01]
[1725310516570,0.1074,59288.0,59267.0,0.002]
[1725310516571,0.1074,59288.0,59267.0,0.01]
[1725310516845,0.1074,59288.0,59266.0,0.002]
[1725310516846,0.1074,59288.0,59268.0,0.01]
[1725310517104,0.1074,59288.0,59277.0,0.012]
[1725310517313,0.1342,59290.0,59277.0,0.012]
[1725310517314,0.1342,59290.0,59284.0,0.337357]
[1725310517530,0.1342,59290.0,59281.0,0.01]
[1725310517756,0.1342,59290.0,59284.0,0.168677]
[1725310517988,0.1342,59290.0,59289.0,0.002]
[1725310518492,0.1342,59290.0,59289.0,0.02631101]
[1725310518734,0.1342,59290.0,59281.0,0.002]
[1725310518934,0.1342,59290.0,59275.0,0.347405]
[1725310518935,0.1342,59290.0,59275.0,0.002]
[1725310519154,0.1342,59290.0,59267.0,0.84286186]
[1725310519155,0.33733,59289.0,59280.0,0.002]
[1725310519363,0.1342,59290.0,59280.0,0.002]
[1725310519835,0.1342,59290.0,59281.0,0.02635973]
[1725310520083,0.1342,59290.0,59275.0,0.002]
[1725310520309,0.1342,59290.0,59282.0,0.168684]
[1725310520529,0.1342,59290.0,59279.0,0.002]
[1725310520530,0.000813,59297.0,59288.0,0.01]
[1725310520801,0.000813,59297.0,59296.0,0.002]
[1725310521006,0.000813,59297.0,59296.0,0.505935]
[1725310521230,0.000813,59297.0,59296.0,1.192515]
[1725310521451,0.000813,59297.0,59296.0,1.66308867]
[1725310521695,0.03821939,59312.0,59296.0,2.08039041]
[1725310521912,0.03821939,59312.0,59306.0,1.95085827]
[1725310522157,0.03821939,59312.0,59311.0,1.576117]
[1725310522395,0.0004,59339.0,59311.0,1.576117]
[1725310522396,0.0004,59339.0,59322.0,0.37]
[1725310522610,0.02644098,59338.0,59322.0,1.542]
[1725310522878,0.02644098,59338.0,59331.0,1.48242327]
[1725310523167,0.02644098,59338.0,59331.0,1.416218]
[1725310523450,0.0004,59339.0,59331.0,1.416218]
[1725310523451,0.0004,59339.0,59331.0,1.079127]
[1725310523693,0.0004,59339.0,59331.0,1.12818249]
[1725310523905,0.0004,59339.0,59331.0,1.46527349]
[1725310524364,0.0004,59339.0,59331.0,0.03474065]
[1725310524800,0.0004,59339.0,59331.0,0.71415027]
[1725310525027,0.0004,59339.0,59331.0,1.39033227]
[1725310525249,0.0004,59339.0,59331.0,1.41638776]
[1725310525544,0.0004,59339.0,59331.0,0.78669149]
[1725310525793,0.0004,59339.0,59331.0,1.12378249]
[1725310526047,0.00813,59372.0,59361.0,0.01]
[1725310526319,0.00813,59372.0,59361.0,0.80798627]
[1725310526532,0.00813,59372.0,59361.0,1.50770146]
[1725310526769,0.00813,59372.0,59361.0,1.83532827]
[1725310526996,0.00813,59372.0,59369.0,1.49829527]
[1725310527202,0.00813,59372.0,59369.0,1.94787127]
[1725310527459,0.00813,59372.0,59371.0,0.80790127]
[1725310527684,0.00203266,59391.0,59373.0,0.180426]
[1725310527959,0.00203266,59391.0,59390.0,0.178378]
[1725310528199,0.25283266,59391.0,59374.0,0.02645712]
[1725310528443,0.130324,59390.0,59379.0,0.01]
[1725310528684,0.42092927,59390.0,59375.0,0.01]
[1725310528938,0.42092927,59390.0,59363.0,0.01]
[1725310528939,0.02642059,59388.0,59363.0,0.01]
[1725310529195,0.128297,59387.0,59368.0,0.01]
[1725310529407,0.128297,59387.0,59348.0,0.84240186]
[1725310529408,0.168442,59368.0,59359.0,0.01]
[1725310529734,0.14647176,59386.0,59348.0,0.50540786]
[1725310529735,0.336825,59378.0,59363.0,0.50540786]
[1725310529941,0.13647176,59386.0,59355.0,0.01]
[1725310529942,0.29060527,59371.0,59355.0,0.01]
[1725310530176,0.1,59376.0,59360.0,0.01]
[1725310530410,0.1,59376.0,59364.0,0.01]
[1725310530725,0.2515,59390.0,59379.0,0.01]
[1725310530937,0.2515,59390.0,59383.0,0.01]
[1725310531155,0.1103,59390.0,59387.0,0.01]
[1725310531371,0.02641696,59388.0,59382.0,0.01]
[1725310531634,0.336767,59389.0,59373.0,0.01]
[1725310531882,0.1103,59390.0,59372.0,0.01]
[1725310532100,0.1103,59390.0,59348.0,0.85540786]
[1725310532101,0.02019774,59388.0,59364.0,0.01]
[1725310532343,0.02019774,59388.0,59365.0,0.50540786]
[1725310532344,0.37530158,59387.0,59365.0,0.50540786]
[1725310532566,0.37530158,59387.0,59350.0,0.01]
[1725310532571,0.336915,59363.0,59350.0,0.01]
[1725310532800,0.1121,59365.0,59353.0,0.01]
[1725310533050,0.1121,59365.0,59346.0,0.01]
[1725310533262,0.1121,59365.0,59321.0,0.337147]
[1725310533263,0.168509,59344.0,59338.0,0.01]
[1725310533986,0.168509,59344.0,59324.0,0.1425]
[1725310533987,0.975645,59344.0,59334.0,0.01]
[1725310534197,0.1331,59364.0,59355.0,0.01]
[1725310534453,0.1331,59364.0,59330.0,0.35]
[1725310534454,0.1331,59364.0,59350.0,0.01]
[1725310535091,0.1331,59364.0,59342.0,0.01]
[1725310535356,0.1331,59364.0,59355.0,0.01]
[1725310535591,0.1331,59364.0,59337.0,0.50540786]
[1725310535592,0.02642874,59368.0,59367.0,0.01]
[1725310535815,0.30268544,59404.0,59356.0,0.34031599]
[1725310535816,0.1317,59390.0,59373.0,0.01]
[1725310536073,0.52621127,59390.0,59367.0,0.02239724]
[1725310536287,0.1137,59374.0,59370.0,0.50540786]
[1725310536507,0.1137,59374.0,59355.0,0.50540786]
[1725310536508,0.15812527,59390.0,59371.0,0.01]
[1725310536765,0.15812527,59390.0,59368.0,0.002]
[1725310536766,0.269475,59375.0,59368.0,0.02238914]
[1725310536970,0.13052879,59389.0,59364.0,0.002]
[1725310536971,0.1137,59389.0,59371.0,0.01]
[1725310537218,0.1137,59389.0,59360.0,0.01]
[1725310537455,0.1137,59389.0,59357.0,0.01]
[1725310537456,0.269475,59375.0,59357.0,0.01]
[1725310537663,0.134766,59362.0,59361.0,0.50540786]
[1725310537934,0.134766,59362.0,59360.0,0.01]
[1725310537935,0.134768,59361.0,59360.0,0.01]
[1725310538169,0.134768,59361.0,59350.0,0.002]
[1725310538170,0.1327,59366.0,59353.0,0.01]
[1725310538382,0.134774,59359.0,59357.0,0.01]
[1725310538608,0.1145,59365.0,59353.0,0.01]
[1725310538817,0.1145,59365.0,59350.0,0.002]
[1725310538818,0.134791,59351.0,59350.0,0.002]
[1725310539035,0.134791,59351.0,59350.0,0.012]
[1725310539270,0.30268544,59363.0,59337.0,0.01]
[1725310539526,0.674035,59344.0,59341.0,0.50540786]
[1725310539744,0.674035,59344.0,59336.0,0.01]
[1725310539745,0.269641,59338.0,59336.0,0.01]
[1725310539956,0.269641,59338.0,59334.0,0.002]
[1725310539957,0.1368,59345.0,59338.0,0.01]
[1725310540180,0.1368,59345.0,59319.0,0.269725]
[1725310540181,0.134827,59335.0,59334.0,0.002]
[1725310540446,0.1368,59345.0,59324.0,0.01]
[1725310540447,0.40455,59325.0,59324.0,0.01]
[1725310540687,0.40455,59325.0,59322.0,0.50540786]
[1725310540688,0.1037,59338.0,59323.0,0.01]
[1725310540905,0.1037,59338.0,59327.0,0.01]
[1725310541135,0.1368,59345.0,59339.0,0.01]
[1725310541609,0.134836,59331.0,59328.0,0.01]
[1725310541831,0.134836,59331.0,59307.0,0.269782]
[1725310541832,0.404571,59322.0,59321.0,0.51540786]
[1725310542057,0.134827,59335.0,59333.0,0.01]
[1725310542282,0.1425,59343.0,59340.0,0.01]
[1725310542566,0.134823,59337.0,59336.0,0.01]
[1725310543012,0.404469,59337.0,59336.0,0.01]
[1725310543252,0.1145,59344.0,59327.0,0.01]
[1725310543476,0.13485,59325.0,59324.0,0.002]
[1725310543707,0.13485,59325.0,59314.0,0.1356]
[1725310543708,0.41413544,59343.0,59328.0,0.0227132]
[1725310543914,0.1425,59342.0,59328.0,0.01]
[1725310544130,0.1425,59342.0,59322.0,0.01]
[1725310544347,0.134841,59329.0,59328.0,0.01]
[1725310544576,0.404523,59329.0,59328.0,0.01]
[1725310544819,0.404523,59329.0,59315.0,0.1098]
[1725310544820,0.134854,59323.0,59322.0,0.012]
[1725310545060,0.404563,59323.0,59322.0,0.01]
[1725310545295,0.674272,59323.0,59322.0,0.01]
[1725310545513,0.269697,59326.0,59321.0,0.01]
[1725310545514,0.404571,59322.0,59321.0,0.01]
[1725310545754,0.404577,59321.0,59320.0,0.01]
[1725310545980,0.0357,59341.0,59313.0,0.01]
[1725310545981,0.134875,59314.0,59313.0,0.01]
[1725310546195,0.269688,59328.0,59310.0,0.01]
[1725310546196,0.1049,59320.0,59310.0,0.01]
[1725310546431,0.1049,59320.0,59307.0,0.01]
[1725310546640,0.404667,59308.0,59307.0,0.01]
[1725310546853,0.404667,59308.0,59291.0,0.50540786]
[1725310546854,0.404673,59307.0,59306.0,0.01]
[1725310547083,0.404673,59307.0,59288.0,0.145165]
[1725310547084,0.269809,59301.0,59300.0,0.01]
[1725310547300,0.674522,59301.0,59300.0,0.01]
[1725310547587,0.674522,59301.0,59300.0,0.012]
[1725310547588,0.404713,59301.0,59300.0,0.012]
[1725310547828,0.134904,59301.0,59300.0,0.012]
[1725310548307,0.134904,59301.0,59296.0,0.002]
[1725310548308,0.134914,59297.0,59296.0,0.002]
[1725310548549,0.404729,59299.0,59298.0,0.01]
[1725310548771,0.269819,59299.0,59296.0,0.01]
[1725310549015,0.404714,59301.0,59300.0,0.002]
[1725310549216,0.131,59311.0,59295.0,0.01]
[1725310549447,0.67458,59296.0,59295.0,0.01]
[1725310549678,0.269855,59291.0,59290.0,0.01]
[1725310549919,0.134923,59293.0,59292.0,0.002]
[1725310550199,0.134919,59295.0,59292.0,0.01]
[1725310550429,0.28874303,59301.0,59292.0,0.01]
[1725310550430,0.134923,59293.0,59292.0,0.01]
[1725310550866,0.134927,59291.0,59290.0,0.01]
[1725310551322,0.134927,59291.0,59288.0,0.018965]
[1725310551323,0.134932,59289.0,59288.0,0.018965]
[1725310551783,0.404796,59289.0,59288.0,0.005965]
[1725310552005,0.67466,59289.0,59288.0,0.005965]
[1725310552243,0.404796,59289.0,59288.0,0.005965]
[1725310552874,0.67466,59289.0,59288.0,0.005965]
[1725310553224,0.89273367,59289.0,59288.0,0.005965]
[1725310553469,0.82633367,59289.0,59288.0,0.005965]
[1725310553697,0.67466,59289.0,59288.0,0.005965]
[1725310553899,0.70111996,59289.0,59288.0,0.005965]
[1725310554104,0.97098396,59289.0,59288.0,0.005965]
[1725310554383,0.70111996,59289.0,59288.0,0.005965]
[1725310554585,0.26972,59321.0,59288.0,0.005965]
[1725310554586,0.134929,59291.0,59288.0,0.005965]
[1725310554818,0.134928,59291.0,59288.0,0.005965]
[1725310555057,0.02645834,59299.0,59288.0,0.005965]
[1725310555314,0.404796,59289.0,59288.0,0.005965]
[1725310555555,0.67466,59289.0,59288.0,0.005965]
[1725310555756,0.944524,59289.0,59288.0,0.005965]
[1725310555970,1.083024,59289.0,59288.0,0.005965]
[1725310556196,1.10948469,59289.0,59288.0,0.005965]
[1725310557103,0.83962069,59289.0,59288.0,0.005965]
[1725310557327,1.10948469,59289.0,59288.0,0.005965]
[1725310559414,0.269847,59293.0,59288.0,0.005965]
[1725310559630,0.134932,59289.0,59288.0,0.007965]
[1725310559879,0.134932,59289.0,59288.0,0.005965]
[1725310559880,0.404796,59289.0,59288.0,0.005965]
[1725310560103,0.67466,59289.0,59288.0,0.005965]
[1725310560312,0.28874303,59296.0,59288.0,0.005965]
[1725310560523,0.404796,59289.0,59288.0,0.005965]
[1725310560755,0.8813,59289.0,59288.0,0.005965]
[1725310560981,0.944524,59289.0,59288.0,0.005965]
[1725310561217,0.134932,59289.0,59288.0,0.005965]
[1725310561441,0.26985,59293.0,59288.0,0.005965]
[1725310561687,0.134932,59289.0,59288.0,0.005965]
[1725310561902,0.134927,59291.0,59288.0,0.005965]
[1725310562145,0.134909,59299.0,59298.0,0.002]
[1725310562372,0.02645721,59299.0,59293.0,0.01]
[1725310562622,0.2463,59326.0,59311.0,0.01]
[1725310562850,0.269666,59333.0,59322.0,0.134857]
[1725310563067,0.2457,59337.0,59322.0,0.134857]
[1725310563068,0.29610541,59335.0,59322.0,0.277957]
[1725310563277,0.26968,59330.0,59322.0,0.0339537]
[1725310563495,0.43105176,59323.0,59322.0,0.0239537]
[1725310563711,0.02648876,59323.0,59320.0,0.01]
[1725310563951,0.02648876,59323.0,59304.0,0.01]
[1725310563952,0.169817,59322.0,59304.0,0.01]
[1725310564154,0.169817,59322.0,59284.0,0.35]
[1725310564155,0.28874303,59307.0,59306.0,0.50540786]
[1725310564387,0.134922,59294.0,59292.0,0.01]
[1725310564595,0.0288743,59306.0,59295.0,0.01]
[1725310564822,0.269845,59294.0,59291.0,0.002]
[1725310565043,0.1381,59306.0,59293.0,0.01]
[1725310565285,0.1381,59306.0,59295.0,0.01]
[1725310565539,0.67466,59289.0,59288.0,0.005965]
[1725310565751,0.134932,59289.0,59288.0,0.005965]
[1725310565966,0.134919,59295.0,59289.0,0.01]
[1725310566175,0.42684303,59306.0,59288.0,0.005965]
[1725310566176,0.269791,59305.0,59295.0,0.012]
[1725310566424,0.01,59320.0,59295.0,0.012]
[1725310566425,0.269776,59309.0,59302.0,0.144902]
[1725310566650,0.269776,59309.0,59294.0,0.2471]
[1725310566651,0.28874303,59307.0,59288.0,0.015965]
[1725310566860,0.28874303,59307.0,59292.0,0.002]
[1725310567078,0.28874303,59307.0,59288.0,0.150898]
[1725310567079,0.269802,59303.0,59296.0,0.002]
[1725310567295,0.134879,59313.0,59306.0,0.01]
[1725310567513,0.02645382,59314.0,59313.0,0.134877]
[1725310567735,0.410107,59324.0,59314.0,0.01]
[1725310568032,0.1404,59324.0,59314.0,0.01]
[1725310568183,0.134861,59321.0,59314.0,0.01]
[1725310568413,0.1404,59324.0,59309.0,0.271772]
[1725310568414,0.13488,59312.0,59309.0,0.002]
[1725310568619,0.28874303,59317.0,59303.0,0.01]
[1725310568850,0.2529,59322.0,59288.0,0.005965]
[1725310568851,0.269846,59293.0,59292.0,0.002]
[1725310569054,0.28874303,59304.0,59289.0,0.012]
[1725310569270,0.02645386,59295.0,59288.0,0.005965]
[1725310569495,0.31761733,59304.0,59288.0,0.005965]
[1725310569496,0.28874303,59304.0,59294.0,0.01]
[1725310569693,0.28874303,59304.0,59289.0,0.01]
[1725310569694,0.269837,59295.0,59289.0,0.01]
[1725310569908,0.269837,59295.0,59288.0,0.005965]
[1725310569909,0.134932,59289.0,59288.0,0.005965]
[1725310570370,0.67466,59289.0,59288.0,0.005965]
[1725310570585,0.944524,59289.0,59288.0,0.005965]
[1725310571461,1.144284,59289.0,59288.0,0.005965]
[1725310571669,1.098953,59289.0,59288.0,0.005965]
[1725310572296,1.12541378,59289.0,59288.0,0.005965]
[1725310572503,1.50577778,59289.0,59288.0,0.005965]
[1725310572927,1.61577778,59289.0,59288.0,0.005965]
[1725310573366,2.02784178,59289.0,59288.0,0.005965]
[1725310573586,2.02784178,59289.0,59262.0,0.008965]
[1725310573587,0.404973,59263.0,59262.0,0.008965]
[1725310573811,0.28874303,59274.0,59263.0,0.01]
[1725310574045,0.28874303,59274.0,59262.0,0.008965]
[1725310574046,0.43094303,59279.0,59265.0,0.012]
[1725310574284,0.134991,59263.0,59262.0,0.008965]
[1725310574530,0.404973,59263.0,59262.0,0.008965]
[1725310575631,0.674955,59263.0,59262.0,0.008965]
[1725310575870,0.404973,59263.0,59262.0,0.008965]
[1725310576309,0.896328,59263.0,59262.0,0.008965]
[1725310576526,0.404973,59263.0,59262.0,0.008965]
[1725310577008,0.674955,59263.0,59262.0,0.008965]
[1725310577264,1.21872177,59263.0,59262.0,0.008965]
[1725310577488,1.45342177,59263.0,59262.0,0.008965]
[1725310577702,1.722208,59263.0,59262.0,0.008965]
[1725310577926,1.722208,59263.0,59254.0,0.008976]
[1725310577927,0.01,59261.0,59254.0,0.008976]
[1725310578163,1.23380903,59255.0,59254.0,0.008976]
[1725310578397,1.33751903,59255.0,59254.0,0.008976]
[1725310578828,1.43751903,59255.0,59254.0,0.008976]
[1725310579572,1.70753803,59255.0,59254.0,0.008976]
[1725310579788,1.70753803,59255.0,59251.0,0.0004]
[1725310579789,0.955115,59252.0,59251.0,0.0004]
[1725310580013,1.325148,59252.0,59251.0,0.0004]
[1725310580237,2.278792,59252.0,59251.0,0.0004]
[1725310580455,2.71737664,59252.0,59251.0,0.0004]
[1725310580673,1.998759,59252.0,59251.0,0.0004]
[1725310580979,1.148515,59252.0,59251.0,0.0004]
[1725310581617,1.428548,59252.0,59251.0,0.0004]
[1725310581846,1.29813,59252.0,59251.0,0.0004]
[1725310582062,1.156632,59252.0,59251.0,0.0004]
[1725310582555,1.49897154,59252.0,59251.0,0.0004]
[1725310583231,1.50897154,59252.0,59251.0,0.0004]
[1725310584926,1.480175,59252.0,59251.0,0.0004]
[1725310585163,1.237925,59252.0,59251.0,0.0004]
[1725310586129,1.237925,59252.0,59231.0,0.0004]
[1725310586130,0.145062,59232.0,59231.0,0.0004]
[1725310586375,1.317274,59232.0,59231.0,0.0004]
[1725310586604,1.687398,59232.0,59231.0,0.0004]
[1725310586856,1.592624,59232.0,59231.0,0.0004]
[1725310587076,2.30306301,59232.0,59231.0,0.0004]
[1725310587340,2.17149103,59232.0,59231.0,0.0004]
[1725310587583,2.17149103,59232.0,59202.0,0.0206906]
[1725310587584,1.23449503,59212.0,59206.0,0.01]
[1725310588067,1.23449503,59212.0,59202.0,0.0206906]
[1725310588068,0.68564,59203.0,59202.0,0.0206906]
[1725310588326,0.68564,59203.0,59187.0,0.50540786]
[1725310588327,1.50512003,59192.0,59187.0,0.50540786]
[1725310588606,1.50512003,59192.0,59178.0,0.008965]
[1725310588607,0.01,59186.0,59178.0,0.008965]
[1725310588793,0.675995,59172.0,59157.0,0.50540786]
[1725310589034,0.676017,59170.0,59157.0,0.50540786]
[1725310589269,1.845535,59170.0,59137.0,0.0008954]
[1725310589526,1.675128,59170.0,59157.0,0.002]
[1725310589747,1.417631,59170.0,59157.0,0.002]
[1725310589992,1.165529,59170.0,59156.0,0.002]
[1725310590219,1.165529,59170.0,59153.0,0.002]
[1725310590481,0.40561,59170.0,59155.0,0.12]
[1725310590748,0.676017,59170.0,59159.0,0.002]
[1725310591201,0.28874303,59174.0,59155.0,0.1178954]
[1725310591444,0.012,59190.0,59155.0,0.1178954]
[1725310591445,0.28874303,59180.0,59159.0,0.00338073]
[1725310591665,0.315389,59179.0,59159.0,0.135228]
[1725310591897,0.135213,59166.0,59156.0,0.405704]
[1725310592111,0.31525598,59180.0,59156.0,0.405704]
[1725310592112,0.135207,59169.0,59156.0,0.270469]
[1725310592360,0.135207,59169.0,59155.0,0.1178954]
[1725310592361,0.135209,59168.0,59157.0,0.270465]
[1725310592578,0.135203,59170.0,59160.0,0.135225]
[1725310592790,0.2704,59172.0,59156.0,0.27047]
[1725310593035,0.2704,59172.0,59161.0,0.135222]
[1725310593036,0.135206,59169.0,59161.0,0.135222]
[1725310593301,0.270384,59175.0,59155.0,0.1178554]
[1725310593302,0.270418,59168.0,59155.0,0.1178554]
[1725310593557,0.270418,59168.0,59159.0,0.135227]
[1725310593802,0.1352,59172.0,59164.0,0.135216]
[1725310594056,0.28874303,59180.0,59161.0,0.270444]
[1725310594277,0.64370786,59186.0,59168.0,0.135206]
[1725310594497,0.64370786,59186.0,59162.0,0.270442]
[1725310594498,0.28874303,59194.0,59169.0,0.1479]
[1725310594710,0.50540786,59190.0,59170.0,0.135202]
[1725310594961,0.498199,59189.0,59170.0,0.135202]
[1725310595184,0.28874303,59194.0,59169.0,0.1479]
[1725310595185,0.135186,59178.0,59171.0,0.1352]
[1725310595427,0.270333,59187.0,59170.0,0.135203]
[1725310595428,0.135192,59175.0,59170.0,0.135203]
[1725310595656,0.405589,59173.0,59172.0,0.02034264]
[1725310595910,0.405589,59173.0,59161.0,0.1479]
[1725310595911,0.135199,59172.0,59171.0,0.02034875]
[1725310596126,0.28874303,59178.0,59161.0,0.1479]
[1725310596354,0.270422,59167.0,59162.0,0.02040377]
[1725310596570,0.31761733,59178.0,59162.0,0.02040377]
[1725310596571,0.135219,59163.0,59162.0,0.02040377]
[1725310596782,0.135221,59162.0,59161.0,0.1479]
[1725310597020,0.270392,59174.0,59162.0,0.02040377]
[1725310597277,0.270392,59174.0,59161.0,0.1479]
[1725310597278,0.405664,59162.0,59161.0,0.02040989]
[1725310597534,0.27043,59165.0,59152.0,0.1479]
[1725310597790,0.28874303,59166.0,59148.0,0.1119]
[1725310598028,0.946711,59152.0,59145.0,0.1472]
[1725310598269,0.946711,59152.0,59142.0,0.0117036]
[1725310598769,1.687885,59152.0,59142.0,0.0117036]
[1725310599022,1.3849,59152.0,59142.0,0.0117036]
[1725310599268,1.49499244,59152.0,59142.0,0.0117036]
[1725310599509,0.946855,59143.0,59142.0,0.0117036]
[1725310599759,1.311594,59143.0,59142.0,0.0117036]
[1725310599977,1.60033703,59143.0,59142.0,0.0117036]
[1725310600197,1.23559803,59143.0,59142.0,0.0117036]
[1725310600421,1.23559803,59143.0,59137.0,0.0008954]
[1725310600422,0.676382,59138.0,59137.0,0.0008954]
[1725310600662,1.25762,59138.0,59137.0,0.0008954]
[1725310600919,1.548173,59138.0,59137.0,0.0008954]
[1725310601150,2.09552464,59138.0,59137.0,0.0008954]
[1725310601374,2.08552464,59138.0,59137.0,0.0008954]
[1725310601842,1.62642,59138.0,59137.0,0.0008954]
[1725310602062,0.676382,59138.0,59137.0,0.0008954]
[1725310602533,0.81526793,59138.0,59137.0,0.0008954]
[1725310602798,0.405829,59138.0,59137.0,0.0008954]
[1725310603017,0.270535,59142.0,59137.0,0.0008954]
[1725310603228,0.1,59141.0,59137.0,0.0008954]
[1725310603441,0.135273,59140.0,59137.0,0.0008954]
[1725310603672,0.270544,59140.0,59137.0,0.0008954]
[1725310604144,0.28874303,59149.0,59137.0,0.0008954]
[1725310604146,0.28874303,59149.0,59138.0,0.270553]
[1725310604147,0.135252,59149.0,59138.0,0.270553]
[1725310604380,0.2688,59156.0,59137.0,0.0008954]
[1725310604381,0.135236,59156.0,59137.0,0.0008954]
[1725310604593,0.135245,59152.0,59144.0,0.270524]
[1725310604839,0.55918903,59162.0,59148.0,0.135253]
[1725310604840,0.28874303,59156.0,59148.0,0.135253]
[1725310605096,0.28874303,59156.0,59145.0,0.02050775]
[1725310605097,0.270475,59155.0,59145.0,0.02050775]
[1725310605340,0.135243,59153.0,59146.0,0.135256]
[1725310605590,0.135243,59153.0,59146.0,0.15575863]
[1725310605827,0.135243,59153.0,59147.0,0.135256]
[1725310606144,0.135238,59155.0,59149.0,0.135249]
[1725310606401,0.02652285,59157.0,59148.0,0.0204894]
[1725310606645,0.02652285,59157.0,59140.0,0.270541]
[1725310606646,0.135247,59151.0,59150.0,0.02047716]
[1725310606858,0.28874303,59151.0,59149.0,0.02048328]
[1725310607070,0.270498,59150.0,59138.0,0.270553]
[1725310607285,0.135268,59142.0,59137.0,0.0008954]
[1725310607539,0.270517,59146.0,59139.0,0.02054446]
[1725310607755,0.270504,59149.0,59138.0,0.02055058]
[1725310607756,0.270539,59142.0,59138.0,0.02055058]
[1725310607967,0.270539,59142.0,59137.0,0.0008954]
[1725310607968,0.135274,59140.0,59137.0,0.0008954]
[1725310608180,0.28874303,59151.0,59137.0,0.0008954]
[1725310608181,0.270499,59150.0,59137.0,0.0008954]
[1725310608383,0.28874303,59157.0,59138.0,0.29110158]
[1725310608620,0.27045,59161.0,59138.0,0.02055058]
[1725310608865,0.50540786,59160.0,59147.0,0.270509]
[1725310609111,0.270459,59159.0,59147.0,0.270509]
[1725310609345,0.43594303,59163.0,59148.0,0.0204894]
[1725310609577,0.28874303,59156.0,59148.0,0.0204894]
[1725310609818,0.28874303,59156.0,59139.0,0.270546]
[1725310610053,0.28874303,59156.0,59139.0,0.135273]
[1725310610054,0.270504,59149.0,59139.0,0.135273]
[1725310610272,0.1472,59163.0,59137.0,0.0008954]
[1725310610273,0.405829,59138.0,59137.0,0.0008954]
[1725310610502,0.676382,59138.0,59137.0,0.0008954]
[1725310611175,0.405829,59138.0,59137.0,0.0008954]
[1725310611414,0.676382,59138.0,59137.0,0.0008954]
[1725310611931,1.5022202,59138.0,59137.0,0.0008954]
[1725310612137,1.6022202,59138.0,59137.0,0.0008954]
[1725310612597,1.369287,59138.0,59137.0,0.0008954]
[1725310613733,1.379287,59138.0,59137.0,0.0008954]
[1725310614216,1.352701,59138.0,59137.0,0.0008954]
[1725310615129,1.06956072,59138.0,59137.0,0.0008954]
[1725310615335,1.34011372,59138.0,59137.0,0.0008954]
[1725310615992,1.36664604,59138.0,59137.0,0.0008954]
[1725310616876,1.64719904,59138.0,59137.0,0.0008954]
[1725310617102,1.65719904,59138.0,59137.0,0.0008954]
[1725310617351,1.65719904,59138.0,59106.0,0.1432]
[1725310617352,1.26777603,59132.0,59106.0,0.1432]
[1725310617569,5.89895203,59132.0,59106.0,0.1432]
[1725310617872,5.86757679,59132.0,59106.0,0.1432]
[1725310618099,5.86757679,59132.0,59131.0,1e-06]
[1725310618100,6.83199579,59132.0,59131.0,1e-06]
[1725310618540,1.662594,59128.0,59099.0,0.008987]
[1725310618754,4.88602,59128.0,59099.0,0.008987]
[1725310618969,4.27643212,59128.0,59099.0,0.144352]
[1725310619293,4.10580812,59128.0,59099.0,0.144352]
[1725310619507,3.92840112,59128.0,59101.0,0.13536]
[1725310619727,3.92840112,59128.0,59099.0,0.008987]
[1725310620156,3.894603,59128.0,59099.0,0.008987]
[1725310620384,3.894603,59128.0,59106.0,0.135349]
[1725310620385,2.796853,59128.0,59106.0,0.135349]
[1725310620606,2.796853,59128.0,59107.0,0.135347]
[1725310620822,2.796853,59128.0,59099.0,0.008987]
[1725310620823,1.883121,59128.0,59108.0,0.270687]
[1725310621058,0.676497,59128.0,59111.0,0.28006]
[1725310621334,0.40764303,59132.0,59118.0,0.270644]
[1725310621335,0.28874303,59132.0,59118.0,0.270644]
[1725310621549,0.28874303,59138.0,59126.0,0.135303]
[1725310621810,0.69464103,59128.0,59116.0,0.1446]
[1725310622075,0.270536,59142.0,59128.0,0.02061178]
[1725310622297,0.01,59153.0,59129.0,0.1446]
[1725310622298,0.1114,59153.0,59129.0,0.1446]
[1725310622512,0.135277,59138.0,59129.0,0.16520566]
[1725310622737,0.135276,59139.0,59131.0,0.270583]
[1725310622972,0.13527,59141.0,59130.0,0.270589]
[1725310623237,0.28874303,59141.0,59132.0,0.0170079]
[1725310623455,0.28874303,59141.0,59119.0,0.0339]
[1725310623456,0.13529,59132.0,59131.0,0.01701279]
[1725310623679,0.28874303,59134.0,59124.0,0.1446]
[1725310623919,0.28874303,59134.0,59115.0,0.113]
[1725310623920,0.69464103,59128.0,59117.0,0.1446]
[1725310624141,0.69464103,59128.0,59117.0,0.279923]
[1725310624376,0.405898,59128.0,59119.0,0.270639]
[1725310624798,0.405898,59128.0,59121.0,0.135314]
[1725310625074,1.79748003,59128.0,59108.0,0.1446]
[1725310625313,1.75134642,59128.0,59108.0,0.1446]
[1725310625530,2.00500661,59128.0,59108.0,0.1446]
[1725310625785,2.17355825,59128.0,59108.0,0.1446]
[1725310626254,2.17355825,59128.0,59105.0,0.50540786]
[1725310626491,2.17555825,59128.0,59105.0,0.50540786]
[1725310626723,2.32095825,59128.0,59105.0,0.50540786]